[Event "Late-Titled-Tuesday-Blitz-February-20-2024"]
[Site "Chess.com"]
[Date "2024.02.20"]
[Round "4"]
[White "JoakimVonAnd"]
[Black "Bugcrusher"]
[Result "1-0"]
[WhiteElo "2698"]
[BlackElo "2525"]
[TimeControl "180+1"]
[EndTime "14:37:05 PST"]
[Termination "JoakimVonAnd won by resignation"]

1. Nf3 {[%clk 0:03:00.5]} 1... d5 {[%clk 0:02:57.9]} 2. g3 {[%clk 0:03:00.6]}
2... Nd7 {[%clk 0:02:54.3]} 3. d4 {[%clk 0:02:58.5]} 3... Nb6 {[%clk 0:02:54.3]}
4. b3 {[%clk 0:02:56.2]} 4... a5 {[%clk 0:02:48.1]} 5. a4 {[%clk 0:02:54.9]}
5... Bf5 {[%clk 0:02:46.4]} 6. Ba3 {[%clk 0:02:51.2]} 6... e6 {[%clk 0:02:46]}
7. Bxf8 {[%clk 0:02:50.4]} 7... Kxf8 {[%clk 0:02:46.9]} 8. Bg2 {[%clk
0:02:36.1]} 8... Nf6 {[%clk 0:02:31.6]} 9. Nh4 {[%clk 0:02:34.2]} 9... Be4
{[%clk 0:02:30]} 10. f3 {[%clk 0:02:34.4]} 10... Bg6 {[%clk 0:02:29.7]} 11. O-O
{[%clk 0:02:24]} 11... Qd6 {[%clk 0:02:22]} 12. e4 {[%clk 0:02:13.1]} 12... dxe4
{[%clk 0:01:59.6]} 13. Nxg6+ {[%clk 0:02:12.2]} 13... hxg6 {[%clk 0:02:00]} 14.
fxe4 {[%clk 0:02:12.6]} 14... e5 {[%clk 0:02:00.6]} 15. Nc3 {[%clk 0:01:46.1]}
15... exd4 {[%clk 0:01:54]} 16. Nb5 {[%clk 0:01:45.4]} 16... Qc5 {[%clk
0:01:53.2]} 17. Qxd4 {[%clk 0:01:40.4]} 17... Qxd4+ {[%clk 0:01:52.4]} 18. Nxd4
{[%clk 0:01:41.3]} 18... Rd8 {[%clk 0:01:49.1]} 19. Rad1 {[%clk 0:01:38]} 19...
Rh5 {[%clk 0:01:27.2]} 20. Ne6+ {[%clk 0:01:37.4]} 20... fxe6 {[%clk 0:01:24]}
21. Rxd8+ {[%clk 0:01:37.2]} 21... Ke7 {[%clk 0:01:24.5]} 22. Rb8 {[%clk
0:01:30.6]} 22... Rc5 {[%clk 0:01:19.3]} 23. c4 {[%clk 0:01:29]} 23... Nbd7
{[%clk 0:01:17.1]} 24. Rxb7 {[%clk 0:01:28.7]} 24... Ne5 {[%clk 0:01:16.4]} 25.
Rb5 {[%clk 0:01:28.9]} 25... Nfd7 {[%clk 0:01:13.8]} 26. Rd1 {[%clk 0:01:25.5]}
26... c6 {[%clk 0:01:13.5]} 27. Rb7 {[%clk 0:01:24.7]} 27... Ke8 {[%clk
0:01:06.9]} 28. Bh3 {[%clk 0:01:22.9]} 28... Nf6 {[%clk 0:01:02.1]} 29. Bxe6
{[%clk 0:01:17.2]} 29... Nxe4 {[%clk 0:01:01.1]} 30. Kg2 {[%clk 0:01:09.8]}
30... Nc3 {[%clk 0:00:54.7]} 31. Re1 {[%clk 0:01:05.6]} 31... g5 {[%clk
0:00:48.6]} 32. Bd5 {[%clk 0:01:03.5]} 32... cxd5 {[%clk 0:00:42.9]} 33. Rxe5+
{[%clk 0:01:03.2]} 33... Kd8 {[%clk 0:00:43.8]} 34. Rxg5 {[%clk 0:01:02.4]} 1-0

[Event "Late-Titled-Tuesday-Blitz-February-20-2024"]
[Site "Chess.com"]
[Date "2024.02.20"]
[Round "4"]
[White "jamengrand"]
[Black "Vasily85"]
[Result "1-0"]
[WhiteElo "2347"]
[BlackElo "2460"]
[TimeControl "180+1"]
[EndTime "14:37:07 PST"]
[Termination "jamengrand won on time"]

1. e4 {[%clk 0:03:00.9]} 1... c5 {[%clk 0:02:55]} 2. Nf3 {[%clk 0:03:00.5]} 2...
e6 {[%clk 0:02:53.1]} 3. d4 {[%clk 0:03:00]} 3... cxd4 {[%clk 0:02:54]} 4. Bg5
{[%clk 0:03:00.3]} 4... Qa5+ {[%clk 0:02:25.5]} 5. c3 {[%clk 0:02:59.6]} 5...
Nc6 {[%clk 0:02:04.5]} 6. b4 {[%clk 0:02:55.7]} 6... Nxb4 {[%clk 0:01:12.2]} 7.
cxb4 {[%clk 0:02:54.6]} 7... Bxb4+ {[%clk 0:01:13.1]} 8. Bd2 {[%clk 0:02:53.9]}
8... Ne7 {[%clk 0:01:09.8]} 9. Bd3 {[%clk 0:02:52.1]} 9... O-O {[%clk
0:01:04.2]} 10. O-O {[%clk 0:02:48.8]} 10... Nc6 {[%clk 0:01:04.5]} 11. a3
{[%clk 0:02:43.9]} 11... Bxd2 {[%clk 0:01:03.7]} 12. Nbxd2 {[%clk 0:02:43.9]}
12... d6 {[%clk 0:01:01.6]} 13. Nc4 {[%clk 0:02:24.5]} 13... Qd8 {[%clk
0:01:02.1]} 14. e5 {[%clk 0:02:13.1]} 14... dxe5 {[%clk 0:00:46.3]} 15. Nfxe5
{[%clk 0:02:12.9]} 15... Nxe5 {[%clk 0:00:47.2]} 16. Nxe5 {[%clk 0:02:13.3]}
16... Qd5 {[%clk 0:00:25.5]} 17. Re1 {[%clk 0:02:06.8]} 17... h6 {[%clk
0:00:11.4]} 18. Rc1 {[%clk 0:01:57.8]} 18... Rd8 {[%clk 0:00:08.4]} 19. Rc7
{[%clk 0:01:55.1]} 19... f6 {[%clk 0:00:08.4]} 20. Qg4 {[%clk 0:01:51.5]} 20...
Bd7 {[%clk 0:00:05.7]} 21. Nxd7 {[%clk 0:01:39.9]} 21... Rxd7 {[%clk 0:00:06.6]}
22. Bc4 {[%clk 0:01:38.5]} 22... Rxc7 {[%clk 0:00:05.6]} 23. Bxd5 {[%clk
0:01:37.8]} 23... exd5 {[%clk 0:00:06.5]} 24. Qxd4 {[%clk 0:01:35.1]} 24... Rd8
{[%clk 0:00:05.5]} 25. h4 {[%clk 0:01:34.7]} 25... a6 {[%clk 0:00:04.2]} 26. h5
{[%clk 0:01:34.6]} 26... Rc4 {[%clk 0:00:02.9]} 27. Qb6 {[%clk 0:01:33.3]} 27...
Rd7 {[%clk 0:00:03.1]} 28. Re8+ {[%clk 0:01:32.4]} 28... Kh7 {[%clk 0:00:02.6]}
29. Qe6 {[%clk 0:01:32.3]} 29... Rc1+ {[%clk 0:00:01.2]} 30. Kh2 {[%clk
0:01:31.9]} 1-0

[Event "Late-Titled-Tuesday-Blitz-February-20-2024"]
[Site "Chess.com"]
[Date "2024.02.20"]
[Round "4"]
[White "KetiTsatsalashvili"]
[Black "giovannibrandao7"]
[Result "1-0"]
[WhiteElo "2445"]
[BlackElo "2246"]
[TimeControl "180+1"]
[EndTime "14:37:08 PST"]
[Termination "KetiTsatsalashvili won by resignation"]

1. d4 {[%clk 0:03:00.9]} 1... Nf6 {[%clk 0:03:00.5]} 2. Nf3 {[%clk 0:03:01]}
2... g6 {[%clk 0:03:00.3]} 3. c4 {[%clk 0:03:00.6]} 3... Bg7 {[%clk 0:03:00.8]}
4. Nc3 {[%clk 0:03:01]} 4... d5 {[%clk 0:03:01.3]} 5. cxd5 {[%clk 0:03:00.1]}
5... Nxd5 {[%clk 0:03:02.2]} 6. e4 {[%clk 0:02:59.3]} 6... Nxc3 {[%clk
0:03:02.7]} 7. bxc3 {[%clk 0:03:00.2]} 7... O-O {[%clk 0:03:02.4]} 8. Be2 {[%clk
0:02:57.8]} 8... c5 {[%clk 0:03:02.8]} 9. Rb1 {[%clk 0:02:53.2]} 9... Nc6 {[%clk
0:03:02.9]} 10. d5 {[%clk 0:02:38.6]} 10... Ne5 {[%clk 0:02:51.4]} 11. Nxe5
{[%clk 0:02:29.8]} 11... Bxe5 {[%clk 0:02:46.8]} 12. Qd3 {[%clk 0:02:30.1]}
12... e6 {[%clk 0:01:57.7]} 13. f4 {[%clk 0:01:50.5]} 13... Bg7 {[%clk
0:01:44.6]} 14. c4 {[%clk 0:01:39.3]} 14... exd5 {[%clk 0:01:43.3]} 15. cxd5
{[%clk 0:01:37.4]} 15... b6 {[%clk 0:01:18]} 16. O-O {[%clk 0:01:34.6]} 16...
Bb7 {[%clk 0:00:51.1]} 17. Bf3 {[%clk 0:01:30.1]} 17... Qd7 {[%clk 0:00:42]} 18.
e5 {[%clk 0:01:22.4]} 18... f6 {[%clk 0:00:28.5]} 19. e6 {[%clk 0:01:12.4]}
19... Qd6 {[%clk 0:00:28.1]} 20. f5 {[%clk 0:01:11.2]} 20... gxf5 {[%clk
0:00:16.2]} 21. Qxf5 {[%clk 0:01:03.1]} 21... Rad8 {[%clk 0:00:12.3]} 22. Be4
{[%clk 0:01:00.8]} 1-0

[Event "Late-Titled-Tuesday-Blitz-February-20-2024"]
[Site "Chess.com"]
[Date "2024.02.20"]
[Round "4"]
[White "David_George21"]
[Black "otrov-11"]
[Result "1-0"]
[WhiteElo "2394"]
[BlackElo "2597"]
[TimeControl "180+1"]
[EndTime "14:37:09 PST"]
[Termination "David_George21 won by checkmate"]

1. e4 {[%clk 0:03:00.9]} 1... e6 {[%clk 0:03:00.1]} 2. d4 {[%clk 0:02:59.7]}
2... d5 {[%clk 0:03:00.8]} 3. Nd2 {[%clk 0:02:58.2]} 3... c5 {[%clk 0:03:00.7]}
4. exd5 {[%clk 0:02:56]} 4... Qxd5 {[%clk 0:03:01.6]} 5. Ngf3 {[%clk 0:02:55]}
5... cxd4 {[%clk 0:03:02.2]} 6. Bc4 {[%clk 0:02:54.9]} 6... Qd6 {[%clk
0:03:02.8]} 7. O-O {[%clk 0:02:54.5]} 7... Nf6 {[%clk 0:03:03.5]} 8. Nb3 {[%clk
0:02:53.9]} 8... Nc6 {[%clk 0:03:04.2]} 9. Nbxd4 {[%clk 0:02:54]} 9... Nxd4
{[%clk 0:03:05.1]} 10. Nxd4 {[%clk 0:02:53.8]} 10... Qc7 {[%clk 0:03:03.2]} 11.
Qe2 {[%clk 0:02:51.8]} 11... a6 {[%clk 0:03:00.2]} 12. c3 {[%clk 0:02:50.6]}
12... Bd6 {[%clk 0:03:00.7]} 13. h3 {[%clk 0:02:49.5]} 13... O-O {[%clk
0:03:01.1]} 14. Bg5 {[%clk 0:02:43.8]} 14... e5 {[%clk 0:02:56]} 15. Bxf6 {[%clk
0:02:39.2]} 15... gxf6 {[%clk 0:02:56.9]} 16. Nc2 {[%clk 0:02:31.4]} 16... Kh8
{[%clk 0:02:47]} 17. Bd3 {[%clk 0:02:30.9]} 17... f5 {[%clk 0:02:45.5]} 18. Ne3
{[%clk 0:02:29.9]} 18... e4 {[%clk 0:02:45.3]} 19. Bc2 {[%clk 0:02:26.2]} 19...
Rg8 {[%clk 0:02:40.6]} 20. Qh5 {[%clk 0:02:18.4]} 20... Bf4 {[%clk 0:02:16.5]}
21. Nd5 {[%clk 0:02:09.3]} 21... Qe5 {[%clk 0:02:12]} 22. Nxf4 {[%clk
0:02:03.4]} 22... Qxf4 {[%clk 0:02:12.9]} 23. Qxf7 {[%clk 0:02:01.9]} 23... Qg5
{[%clk 0:02:13.1]} 24. g3 {[%clk 0:01:44.8]} 24... e3 {[%clk 0:02:13.7]} 25. Kh1
{[%clk 0:01:17.7]} 25... Qh6 {[%clk 0:01:50.6]} 26. h4 {[%clk 0:01:13]} 26...
Be6 {[%clk 0:01:47.4]} 27. Qxb7 {[%clk 0:00:56]} 27... exf2 {[%clk 0:01:40.6]}
28. Rxf2 {[%clk 0:00:50.9]} 28... Rab8 {[%clk 0:01:34.6]} 29. Qc7 {[%clk
0:00:39.4]} 29... Qe3 {[%clk 0:01:18.9]} 30. Raf1 {[%clk 0:00:20.1]} 30... Rxb2
{[%clk 0:01:14]} 31. Bxf5 {[%clk 0:00:20]} 31... Rxf2 {[%clk 0:01:13.1]} 32.
Qxh7# {[%clk 0:00:19.1]} 1-0

[Event "Late-Titled-Tuesday-Blitz-February-20-2024"]
[Site "Chess.com"]
[Date "2024.02.20"]
[Round "4"]
[White "micke12a"]
[Black "giomar27"]
[Result "1-0"]
[WhiteElo "2353"]
[BlackElo "2463"]
[TimeControl "180+1"]
[EndTime "14:37:11 PST"]
[Termination "micke12a won by checkmate"]

1. d4 {[%clk 0:02:58.4]} 1... g6 {[%clk 0:02:59.4]} 2. Nc3 {[%clk 0:02:57.8]}
2... Bg7 {[%clk 0:02:59.4]} 3. e4 {[%clk 0:02:58.5]} 3... d6 {[%clk 0:02:58.3]}
4. Be3 {[%clk 0:02:55.5]} 4... a6 {[%clk 0:02:58.6]} 5. a4 {[%clk 0:02:53.8]}
5... b6 {[%clk 0:02:47.8]} 6. f4 {[%clk 0:02:53.5]} 6... Bb7 {[%clk 0:02:47.6]}
7. Nf3 {[%clk 0:02:53.5]} 7... Nf6 {[%clk 0:02:44.7]} 8. Bd3 {[%clk 0:02:52.1]}
8... Ng4 {[%clk 0:02:43.5]} 9. Bg1 {[%clk 0:02:47.4]} 9... Nc6 {[%clk 0:02:27]}
10. h3 {[%clk 0:02:45.9]} 10... Nh6 {[%clk 0:02:25.5]} 11. g4 {[%clk 0:02:46.2]}
11... e6 {[%clk 0:02:11.1]} 12. Qd2 {[%clk 0:02:33.1]} 12... Nb4 {[%clk
0:01:59.2]} 13. g5 {[%clk 0:02:23]} 13... Ng8 {[%clk 0:01:57.9]} 14. Be2 {[%clk
0:02:09.6]} 14... h6 {[%clk 0:01:53]} 15. O-O-O {[%clk 0:01:56.3]} 15... Ne7
{[%clk 0:01:46.4]} 16. Bf2 {[%clk 0:01:38.2]} 16... d5 {[%clk 0:01:43.9]} 17. e5
{[%clk 0:01:35.1]} 17... Nf5 {[%clk 0:01:37.9]} 18. h4 {[%clk 0:01:33.1]} 18...
h5 {[%clk 0:01:37.9]} 19. Kb1 {[%clk 0:01:28.3]} 19... Qe7 {[%clk 0:01:36.8]}
20. Na2 {[%clk 0:01:20.3]} 20... Nxa2 {[%clk 0:01:32.1]} 21. Kxa2 {[%clk
0:01:16.8]} 21... a5 {[%clk 0:01:30.7]} 22. Bd3 {[%clk 0:01:13.6]} 22... Bf8
{[%clk 0:01:29.9]} 23. Bxf5 {[%clk 0:01:08.9]} 23... gxf5 {[%clk 0:01:30.3]} 24.
g6 {[%clk 0:00:58.2]} 24... fxg6 {[%clk 0:01:29.5]} 25. Rdg1 {[%clk 0:00:56.9]}
25... Qd7 {[%clk 0:01:29.4]} 26. Rxg6 {[%clk 0:00:52.5]} 26... Qxa4+ {[%clk
0:01:27.4]} 27. Kb1 {[%clk 0:00:53.1]} 27... Bb4 {[%clk 0:01:24.4]} 28. Qd3
{[%clk 0:00:47.3]} 28... Ba6 {[%clk 0:01:23.7]} 29. Rxe6+ {[%clk 0:00:45.9]}
29... Kd7 {[%clk 0:01:17.7]} 30. Qxf5 {[%clk 0:00:44]} 30... Raf8 {[%clk
0:01:04]} 31. Rd6+ {[%clk 0:00:32.5]} 31... Ke7 {[%clk 0:00:56.8]} 32. Qe6#
{[%clk 0:00:31.2]} 1-0

[Event "Late-Titled-Tuesday-Blitz-February-20-2024"]
[Site "Chess.com"]
[Date "2024.02.20"]
[Round "4"]
[White "jactorres"]
[Black "IngOscarArdila"]
[Result "0-1"]
[WhiteElo "2432"]
[BlackElo "2268"]
[TimeControl "180+1"]
[EndTime "14:37:13 PST"]
[Termination "IngOscarArdila won on time"]

1. e4 {[%clk 0:02:58.1]} 1... e5 {[%clk 0:03:00.1]} 2. Nf3 {[%clk 0:02:56.7]}
2... Nf6 {[%clk 0:03:00.4]} 3. Nxe5 {[%clk 0:02:54.5]} 3... d6 {[%clk
0:03:00.3]} 4. Nf3 {[%clk 0:02:54.4]} 4... Nxe4 {[%clk 0:03:00.6]} 5. Nc3 {[%clk
0:02:54.7]} 5... Nxc3 {[%clk 0:03:00.3]} 6. dxc3 {[%clk 0:02:55.6]} 6... Be7
{[%clk 0:03:00.7]} 7. Bd3 {[%clk 0:02:55]} 7... O-O {[%clk 0:03:01.6]} 8. O-O
{[%clk 0:02:55]} 8... Nd7 {[%clk 0:03:01.6]} 9. Re1 {[%clk 0:02:46.2]} 9... Nf6
{[%clk 0:03:00.9]} 10. h3 {[%clk 0:02:45.3]} 10... Re8 {[%clk 0:02:59.7]} 11. c4
{[%clk 0:02:45.5]} 11... Bd7 {[%clk 0:02:58.3]} 12. b3 {[%clk 0:02:45.9]} 12...
Bc6 {[%clk 0:02:58]} 13. Bb2 {[%clk 0:02:45.6]} 13... Qd7 {[%clk 0:02:56.6]} 14.
Nd4 {[%clk 0:02:44.1]} 14... Bf8 {[%clk 0:02:49.9]} 15. Bf5 {[%clk 0:02:23.1]}
15... Rxe1+ {[%clk 0:02:45.2]} 16. Qxe1 {[%clk 0:02:23.4]} 16... Qe8 {[%clk
0:02:44.5]} 17. Qd2 {[%clk 0:02:03.7]} 17... Ne4 {[%clk 0:02:37.8]} 18. Qf4
{[%clk 0:01:57.5]} 18... Nc5 {[%clk 0:02:11.6]} 19. Qh4 {[%clk 0:00:13.3]} 19...
h6 {[%clk 0:02:02.5]} 20. f3 {[%clk 0:00:13.2]} 20... Qe3+ {[%clk 0:02:00.6]}
21. Kh1 {[%clk 0:00:11.3]} 21... Re8 {[%clk 0:01:58.8]} 22. Qg4 {[%clk
0:00:03.6]} 22... Qf2 {[%clk 0:01:28.3]} 23. Rg1 {[%clk 0:00:02.6]} 23... Re1
{[%clk 0:01:26.9]} 24. Rxe1 {[%clk 0:00:01.8]} 24... Qxe1+ {[%clk 0:01:27.3]}
25. Kh2 {[%clk 0:00:02.1]} 25... Qe5+ {[%clk 0:01:26.8]} 26. Qg3 {[%clk
0:00:01.3]} 26... g6 {[%clk 0:01:12.1]} 0-1

[Event "Late-Titled-Tuesday-Blitz-February-20-2024"]
[Site "Chess.com"]
[Date "2024.02.20"]
[Round "4"]
[White "PawnEatingZombie"]
[Black "MathiasWomacka"]
[Result "0-1"]
[WhiteElo "2199"]
[BlackElo "2505"]
[TimeControl "180+1"]
[EndTime "14:37:15 PST"]
[Termination "MathiasWomacka won by resignation"]

1. e4 {[%clk 0:03:00.9]} 1... c5 {[%clk 0:03:00.1]} 2. c3 {[%clk 0:03:00.1]}
2... d5 {[%clk 0:03:00.3]} 3. exd5 {[%clk 0:02:59.7]} 3... Qxd5 {[%clk
0:03:00.6]} 4. d4 {[%clk 0:03:00.1]} 4... Nf6 {[%clk 0:02:59.9]} 5. Nf3 {[%clk
0:02:59.5]} 5... e6 {[%clk 0:03:00.5]} 6. Be3 {[%clk 0:02:57.7]} 6... Nbd7
{[%clk 0:02:54.2]} 7. c4 {[%clk 0:02:47.9]} 7... Qd6 {[%clk 0:02:51.8]} 8. Nc3
{[%clk 0:02:41.5]} 8... a6 {[%clk 0:02:51.8]} 9. Be2 {[%clk 0:02:18.2]} 9...
cxd4 {[%clk 0:02:42.9]} 10. Nxd4 {[%clk 0:02:15.8]} 10... Be7 {[%clk 0:02:42.2]}
11. O-O {[%clk 0:02:15.2]} 11... O-O {[%clk 0:02:41.8]} 12. h3 {[%clk
0:02:14.9]} 12... Qc7 {[%clk 0:02:37]} 13. Rc1 {[%clk 0:02:11.3]} 13... b6
{[%clk 0:02:27.1]} 14. Bf3 {[%clk 0:02:07.9]} 14... Bb7 {[%clk 0:02:24.3]} 15.
Bxb7 {[%clk 0:01:55.3]} 15... Qxb7 {[%clk 0:02:25.2]} 16. Qf3 {[%clk 0:01:55.3]}
16... Qxf3 {[%clk 0:02:21]} 17. Nxf3 {[%clk 0:01:54.9]} 17... Rfc8 {[%clk
0:02:20.9]} 18. b3 {[%clk 0:01:48.3]} 18... Ba3 {[%clk 0:02:04.8]} 19. Rcd1
{[%clk 0:01:28.7]} 19... b5 {[%clk 0:02:03.2]} 20. Nb1 {[%clk 0:01:05.6]} 20...
Be7 {[%clk 0:02:00.8]} 21. Nbd2 {[%clk 0:00:51.5]} 21... Bb4 {[%clk 0:01:47.7]}
22. Rc1 {[%clk 0:00:34.7]} 22... Kf8 {[%clk 0:01:47]} 23. cxb5 {[%clk 0:00:25]}
23... axb5 {[%clk 0:01:45.3]} 24. Nd4 {[%clk 0:00:25.5]} 24... Rxc1 {[%clk
0:01:41.9]} 25. Rxc1 {[%clk 0:00:25.3]} 25... Rxa2 {[%clk 0:01:36.5]} 26. Rc8+
{[%clk 0:00:25]} 26... Ne8 {[%clk 0:01:36.4]} 27. Ne4 {[%clk 0:00:10.1]} 27...
Nb6 {[%clk 0:01:24.3]} 28. Nc6 {[%clk 0:00:09.5]} 28... Nxc8 {[%clk 0:01:20.9]}
29. Nxb4 {[%clk 0:00:07.4]} 29... Rb2 {[%clk 0:01:19.7]} 30. Bc5+ {[%clk
0:00:06.5]} 30... Kg8 {[%clk 0:01:19]} 31. Nd3 {[%clk 0:00:04.9]} 31... Rxb3
{[%clk 0:01:18.3]} 0-1

[Event "Late-Titled-Tuesday-Blitz-February-20-2024"]
[Site "Chess.com"]
[Date "2024.02.20"]
[Round "4"]
[White "BardArtem"]
[Black "MusicCityMaster"]
[Result "1-0"]
[WhiteElo "2771"]
[BlackElo "2547"]
[TimeControl "180+1"]
[EndTime "14:37:17 PST"]
[Termination "BardArtem won on time"]

1. e4 {[%clk 0:02:57.7]} 1... e6 {[%clk 0:03:00.3]} 2. d4 {[%clk 0:02:57.7]}
2... d5 {[%clk 0:03:01.1]} 3. Nc3 {[%clk 0:02:58.4]} 3... Bb4 {[%clk 0:03:01.3]}
4. Ne2 {[%clk 0:02:58.4]} 4... dxe4 {[%clk 0:03:00.8]} 5. a3 {[%clk 0:02:58]}
5... Bxc3+ {[%clk 0:03:01.2]} 6. Nxc3 {[%clk 0:02:58.9]} 6... Nc6 {[%clk
0:03:01.1]} 7. Bf4 {[%clk 0:02:58.4]} 7... Nf6 {[%clk 0:02:50.4]} 8. Bb5 {[%clk
0:02:55.8]} 8... O-O {[%clk 0:02:42.9]} 9. Bxc6 {[%clk 0:02:54]} 9... bxc6
{[%clk 0:02:43.8]} 10. Qd2 {[%clk 0:02:54]} 10... Rb8 {[%clk 0:02:31.8]} 11.
O-O-O {[%clk 0:02:53.2]} 11... Ba6 {[%clk 0:02:24.7]} 12. Be5 {[%clk 0:02:44.8]}
12... Ng4 {[%clk 0:01:53.6]} 13. Qf4 {[%clk 0:02:34]} 13... Nxe5 {[%clk
0:01:31.6]} 14. Qxe5 {[%clk 0:02:34.9]} 14... Qd6 {[%clk 0:01:17.2]} 15. Nxe4
{[%clk 0:02:29]} 15... Qd5 {[%clk 0:01:04.6]} 16. Nc3 {[%clk 0:02:20.9]} 16...
Qc4 {[%clk 0:01:02.1]} 17. Qxc7 {[%clk 0:02:14]} 17... Rb7 {[%clk 0:00:52.9]}
18. Qa5 {[%clk 0:02:11.8]} 18... Rfb8 {[%clk 0:00:52.4]} 19. b3 {[%clk
0:02:01.3]} 19... Rxb3 {[%clk 0:00:40.1]} 20. cxb3 {[%clk 0:01:57.6]} 20... Qxb3
{[%clk 0:00:40.6]} 21. Kd2 {[%clk 0:01:47.7]} 21... Qb2+ {[%clk 0:00:33.8]} 22.
Ke3 {[%clk 0:01:47.6]} 22... f5 {[%clk 0:00:24]} 23. Rb1 {[%clk 0:01:40.6]}
23... f4+ {[%clk 0:00:20.2]} 24. Kf3 {[%clk 0:01:41.1]} 24... Be2+ {[%clk
0:00:19.3]} 25. Nxe2 {[%clk 0:01:40.2]} 25... Rb3+ {[%clk 0:00:18.7]} 26. Kxf4
{[%clk 0:01:33.7]} 26... Qxe2 {[%clk 0:00:15.8]} 27. Rxb3 {[%clk 0:01:26.9]}
27... Qxf2+ {[%clk 0:00:15.8]} 28. Rf3 {[%clk 0:01:23.8]} 28... Qd2+ {[%clk
0:00:08.2]} 29. Kg3 {[%clk 0:01:21.7]} 29... h5 {[%clk 0:00:08]} 30. Qxd2 {[%clk
0:01:18.9]} 1-0

[Event "Late-Titled-Tuesday-Blitz-February-20-2024"]
[Site "Chess.com"]
[Date "2024.02.20"]
[Round "4"]
[White "IraZyne"]
[Black "Fh2411"]
[Result "1-0"]
[WhiteElo "2361"]
[BlackElo "2593"]
[TimeControl "180+1"]
[EndTime "14:37:29 PST"]
[Termination "IraZyne won on time"]

1. e4 {[%clk 0:03:00.9]} 1... c6 {[%clk 0:02:56.6]} 2. d4 {[%clk 0:02:59.4]}
2... d5 {[%clk 0:02:55.9]} 3. e5 {[%clk 0:02:59.4]} 3... Bf5 {[%clk 0:02:55.5]}
4. h4 {[%clk 0:02:59.3]} 4... h5 {[%clk 0:02:55]} 5. c4 {[%clk 0:02:59.1]} 5...
e6 {[%clk 0:02:54.6]} 6. a3 {[%clk 0:02:58.6]} 6... Ne7 {[%clk 0:02:45.1]} 7.
Nc3 {[%clk 0:02:57]} 7... Nd7 {[%clk 0:02:44.5]} 8. Be3 {[%clk 0:02:55.4]} 8...
dxc4 {[%clk 0:02:39.6]} 9. Bxc4 {[%clk 0:02:54.7]} 9... Nb6 {[%clk 0:02:40.3]}
10. Be2 {[%clk 0:02:50.5]} 10... Ned5 {[%clk 0:02:34.3]} 11. g3 {[%clk
0:02:41.8]} 11... Nxe3 {[%clk 0:02:16.9]} 12. fxe3 {[%clk 0:02:41.4]} 12... g6
{[%clk 0:02:16.9]} 13. Nf3 {[%clk 0:02:40.1]} 13... Bh6 {[%clk 0:02:15.4]} 14.
Qd2 {[%clk 0:02:36.5]} 14... Nd5 {[%clk 0:02:10.6]} 15. Nd1 {[%clk 0:02:32.5]}
15... Bg4 {[%clk 0:01:44.2]} 16. O-O {[%clk 0:02:30.7]} 16... g5 {[%clk
0:01:40.9]} 17. hxg5 {[%clk 0:02:28.6]} 17... Bxf3 {[%clk 0:01:36.4]} 18. gxh6
{[%clk 0:02:24.4]} 18... Bxe2 {[%clk 0:01:35]} 19. Qxe2 {[%clk 0:02:24.5]} 19...
Qg5 {[%clk 0:01:22.3]} 20. Qf3 {[%clk 0:02:23.9]} 20... O-O-O {[%clk 0:01:22.5]}
21. Kh2 {[%clk 0:02:12.9]} 21... Rdg8 {[%clk 0:01:20]} 22. e4 {[%clk 0:02:09]}
22... Ne7 {[%clk 0:01:11]} 23. Ne3 {[%clk 0:02:06.9]} 23... Rxh6 {[%clk
0:01:10.9]} 24. Rac1 {[%clk 0:02:05.6]} 24... Kb8 {[%clk 0:00:53.3]} 25. Ng2
{[%clk 0:02:04]} 25... Rh7 {[%clk 0:00:14]} 26. Rc3 {[%clk 0:01:50]} 26... Ng6
{[%clk 0:00:07.3]} 27. Qf6 {[%clk 0:01:47.8]} 27... Qd2 {[%clk 0:00:07.3]} 28.
Qf2 {[%clk 0:01:42.2]} 28... Qg5 {[%clk 0:00:06.9]} 29. d5 {[%clk 0:01:38.8]}
29... Nxe5 {[%clk 0:00:06]} 30. Ne3 {[%clk 0:01:33.8]} 30... Ng4+ {[%clk
0:00:04.8]} 31. Nxg4 {[%clk 0:01:33.1]} 31... hxg4+ {[%clk 0:00:05.7]} 32. Kg1
{[%clk 0:01:32.5]} 32... Qh5 {[%clk 0:00:05.8]} 33. Qg2 {[%clk 0:01:30.1]} 33...
exd5 {[%clk 0:00:03]} 34. exd5 {[%clk 0:01:28.9]} 34... cxd5 {[%clk 0:00:03.7]}
35. Rfc1 {[%clk 0:01:25.1]} 1-0

[Event "Late-Titled-Tuesday-Blitz-February-20-2024"]
[Site "Chess.com"]
[Date "2024.02.20"]
[Round "4"]
[White "ImportedItalianMaple"]
[Black "Balla_Tamas"]
[Result "0-1"]
[WhiteElo "2513"]
[BlackElo "2380"]
[TimeControl "180+1"]
[EndTime "14:37:33 PST"]
[Termination "Balla_Tamas won by checkmate"]

1. Nf3 {[%clk 0:03:00.9]} 1... c5 {[%clk 0:02:59.9]} 2. e4 {[%clk 0:03:00.3]}
2... Nc6 {[%clk 0:02:59.7]} 3. Bb5 {[%clk 0:02:53.3]} 3... Nf6 {[%clk
0:02:59.1]} 4. e5 {[%clk 0:02:50.6]} 4... Nd5 {[%clk 0:02:52.5]} 5. Nc3 {[%clk
0:02:51.1]} 5... Nc7 {[%clk 0:02:48.2]} 6. Bxc6 {[%clk 0:02:51.3]} 6... dxc6
{[%clk 0:02:48.3]} 7. d3 {[%clk 0:02:51.4]} 7... g6 {[%clk 0:02:46.8]} 8. Ne4
{[%clk 0:02:49.4]} 8... b6 {[%clk 0:02:44.7]} 9. Bf4 {[%clk 0:02:39]} 9... Ne6
{[%clk 0:02:43]} 10. Bg3 {[%clk 0:02:39.1]} 10... Bg7 {[%clk 0:02:43.2]} 11. c3
{[%clk 0:02:34.8]} 11... O-O {[%clk 0:02:42.9]} 12. Qe2 {[%clk 0:02:34.8]} 12...
Ba6 {[%clk 0:02:31.3]} 13. Rd1 {[%clk 0:02:31.6]} 13... Qd7 {[%clk 0:02:31.6]}
14. h4 {[%clk 0:02:22.1]} 14... Rad8 {[%clk 0:02:27.7]} 15. c4 {[%clk
0:02:22.1]} 15... h6 {[%clk 0:02:20.8]} 16. h5 {[%clk 0:02:16.1]} 16... g5
{[%clk 0:02:20.1]} 17. O-O {[%clk 0:01:56.2]} 17... Nd4 {[%clk 0:02:20]} 18.
Nxd4 {[%clk 0:01:56.5]} 18... Qxd4 {[%clk 0:02:20.9]} 19. Nc3 {[%clk 0:01:55.1]}
19... Bc8 {[%clk 0:02:14.5]} 20. Ne4 {[%clk 0:00:47]} 20... Bf5 {[%clk
0:02:01.4]} 21. Rfe1 {[%clk 0:00:41.3]} 21... Bxe5 {[%clk 0:01:52.6]} 22. Bxe5
{[%clk 0:00:36.5]} 22... Qxe5 {[%clk 0:01:52.1]} 23. b3 {[%clk 0:00:35.2]} 23...
Rd4 {[%clk 0:01:47.8]} 24. f3 {[%clk 0:00:20.6]} 24... Rfd8 {[%clk 0:01:45.7]}
25. Nf2 {[%clk 0:00:15.8]} 25... Qxe2 {[%clk 0:01:37.9]} 26. Rxe2 {[%clk
0:00:16.7]} 26... Bxd3 {[%clk 0:01:33.4]} 27. Rxe7 {[%clk 0:00:16.6]} 27... Bf5
{[%clk 0:01:21.7]} 28. Rxd4 {[%clk 0:00:15]} 28... cxd4 {[%clk 0:01:22]} 29.
Rxa7 {[%clk 0:00:14.9]} 29... d3 {[%clk 0:01:22.4]} 30. Nd1 {[%clk 0:00:13.9]}
30... d2 {[%clk 0:01:22.4]} 31. Kf2 {[%clk 0:00:14.6]} 31... Re8 {[%clk
0:01:18]} 32. Ne3 {[%clk 0:00:12]} 32... Rxe3 {[%clk 0:01:14.5]} 33. Kxe3 {[%clk
0:00:12.3]} 33... d1=Q {[%clk 0:01:14.6]} 34. Ra8+ {[%clk 0:00:12.4]} 34... Kg7
{[%clk 0:01:14.5]} 35. g4 {[%clk 0:00:11.8]} 35... Qe1+ {[%clk 0:01:13.9]} 36.
Kd4 {[%clk 0:00:12.1]} 36... Be6 {[%clk 0:01:12]} 37. c5 {[%clk 0:00:12.4]}
37... b5 {[%clk 0:01:12]} 38. Ra6 {[%clk 0:00:11]} 38... Qd2+ {[%clk 0:01:12.3]}
39. Ke5 {[%clk 0:00:11.1]} 39... Qd5# {[%clk 0:01:11.6]} 0-1